bitfinex-derivatives/quotes_BTCF0:USTF0_20250703
["timestamp","ask_amount","ask_price","bid_price","bid_amount"]
[1751552819689,1.82482071,110100.0,110090.0,0.78522083]
[1751552819994,1.58050071,110100.0,110090.0,0.78522083]
[1751552820196,1.58050071,110100.0,110090.0,0.82412083]
[1751552822395,0.36550071,110100.0,110090.0,0.82412083]
[1751552822596,0.36550071,110100.0,110090.0,1.21172531]
[1751552822893,0.18392781,110100.0,110090.0,1.21172531]
[1751552823091,0.36550071,110100.0,110090.0,0.82412083]
[1751552823292,0.18392781,110100.0,110090.0,0.82412083]
[1751552823492,0.36550071,110100.0,110090.0,0.82412083]
[1751552823990,0.10975244,110100.0,110090.0,1.39338931]
[1751552824388,0.16416695,110100.0,110090.0,1.39338931]
[1751552824583,0.16416695,110100.0,110090.0,1.87970483]
[1751552824790,0.07235955,110110.0,110100.0,0.1815729]
[1751552824989,0.07235955,110110.0,110100.0,0.51806633]
[1751552825185,0.07235955,110110.0,110100.0,0.69971433]
[1751552825593,0.38943716,110120.0,110110.0,0.1815564]
[1751552825787,0.07235955,110120.0,110110.0,0.94565431]
[1751552825988,1e-08,110120.0,110110.0,1.91328183]
[1751552826295,0.49079721,110140.0,110130.0,0.1815234]
[1751552826502,0.60079721,110140.0,110130.0,0.41122585]
[1751552826800,0.3176547,110140.0,110130.0,0.45352585]
[1751552826994,0.226896,110140.0,110130.0,0.45352585]
[1751552827195,0.226896,110140.0,110130.0,0.43933242]
[1751552828103,0.226896,110140.0,110130.0,0.23933242]
[1751552828297,0.268496,110140.0,110130.0,0.46933242]
[1751552828703,0.271496,110140.0,110130.0,0.46933242]
[1751552830891,0.003,110140.0,110130.0,0.8569369]
[1751552831209,0.003,110140.0,110130.0,0.8999369]
[1751552831210,0.006,110140.0,110130.0,0.8999369]
[1751552832301,0.1875069,110140.0,110130.0,0.8999369]
[1751552832902,0.1875069,110140.0,110130.0,0.51233242]
[1751552836107,0.1815399,110120.0,110110.0,0.2723228]
[1751552836301,0.8218246,110120.0,110110.0,0.01354715]
[1751552836494,0.9016246,110120.0,110110.0,0.01354715]
[1751552836699,0.1815564,110110.0,110100.0,0.1815726]
[1751552837005,0.1815729,110100.0,110090.0,0.23983423]
[1751552837309,0.6126729,110100.0,110090.0,0.57363754]
[1751552837808,0.6126729,110100.0,110090.0,0.75522694]
[1751552837809,0.3006729,110100.0,110090.0,0.75522694]
[1751552838503,0.6406729,110100.0,110090.0,0.25963754]
[1751552838807,0.6406729,110100.0,110090.0,0.23255598]
[1751552839207,0.6406729,110100.0,110090.0,0.16895598]
[1751552839409,0.72794251,110100.0,110090.0,0.15244131]
[1751552840508,0.73194251,110100.0,110090.0,0.14644131]
[1751552840708,0.73694251,110100.0,110090.0,0.14744131]
[1751552841310,0.74617948,110100.0,110090.0,0.14744131]
[1751552842104,0.39694251,110100.0,110090.0,0.65903071]
[1751552842306,0.35574251,110100.0,110090.0,0.65903071]
[1751552842506,0.35574251,110100.0,110090.0,0.69803071]
[1751552843109,1.28376745,110100.0,110090.0,0.14744131]
[1751552843308,1.66376745,110100.0,110090.0,0.32903071]
[1751552843505,1.61376745,110100.0,110090.0,0.14744131]
[1751552843706,1.61376745,110100.0,110090.0,0.32903071]
[1751552843906,1.61376745,110100.0,110090.0,0.14744131]
[1751552851904,1.61376745,110100.0,110090.0,0.14783444]
[1751552852109,1.61376745,110100.0,110090.0,0.04987123]
[1751552852312,1.79543145,110100.0,110090.0,0.04987123]
[1751552853313,0.91499145,110100.0,110090.0,0.04987123]
[1751552853517,1.85536745,110100.0,110090.0,0.04987123]
[1751552853816,0.73332745,110100.0,110090.0,0.52146053]
[1751552854011,0.13756961,110100.0,110090.0,0.52146053]
[1751552854214,0.13756961,110100.0,110090.0,0.95006501]
[1751552854215,0.27784241,110100.0,110090.0,0.95006501]
[1751552854514,0.09626961,110100.0,110090.0,0.64156053]
[1751552854713,0.02380998,110100.0,110090.0,0.64156053]
[1751552854918,0.02380998,110100.0,110090.0,1.02916501]
[1751552855514,0.02380998,110100.0,110090.0,1.42322453]
[1751552855711,0.02380998,110100.0,110090.0,1.10032886]
[1751552856719,0.02380998,110100.0,110090.0,1.48793334]
[1751552857221,0.02380998,110100.0,110090.0,1.23794153]
[1751552857413,0.20538288,110100.0,110090.0,1.23794153]
[1751552857819,0.02380998,110100.0,110090.0,1.23794153]
[1751552858021,0.20538288,110100.0,110090.0,1.23763322]
[1751552858315,0.02380998,110100.0,110090.0,1.23763322]
[1751552860316,1.45212769,110130.0,110120.0,0.1815399]
[1751552860522,1.45212769,110130.0,110120.0,0.47522961]
[1751552860822,0.19628769,110130.0,110120.0,0.59212961]
[1751552861521,1.42140769,110130.0,110120.0,0.01368971]
[1751552861818,1.46360769,110130.0,110120.0,0.01368971]
[1751552862022,0.1815399,110120.0,110110.0,0.1815551]
[1751552862216,0.1815399,110120.0,110110.0,0.19539851]
[1751552862217,0.6143399,110120.0,110110.0,0.19539851]
[1751552862610,0.6143399,110120.0,110110.0,0.50539851]
[1751552862815,0.6143399,110120.0,110110.0,0.54399851]
[1751552863020,0.6143399,110120.0,110110.0,0.05244341]
[1751552863317,0.7959719,110120.0,110110.0,0.01384341]
[1751552863523,0.6143399,110120.0,110110.0,0.01384341]
[1751552864020,1.8701799,110120.0,110110.0,0.01384341]
[1751552864321,0.1815729,110100.0,110090.0,0.45656421]
[1751552864522,1.6120929,110100.0,110090.0,0.70516739]
[1751552864722,0.1815729,110100.0,110090.0,0.70516739]
[1751552864918,1.3018129,110100.0,110090.0,0.74706739]
[1751552865324,1.6418129,110100.0,110090.0,0.42167009]
[1751552865621,0.4915729,110100.0,110090.0,0.44977009]
[1751552865822,1.6117329,110100.0,110090.0,0.26468779]
[1751552866019,1.3017329,110100.0,110090.0,0.47468779]
[1751552866322,1.7010329,110100.0,110090.0,0.15278779]
[1751552866525,1.77357385,110100.0,110090.0,0.15278779]
[1751552866922,1.77457385,110100.0,110090.0,0.11638779]
[1751552867218,1.8634158,110100.0,110090.0,0.05067527]
[1751552869622,0.7432558,110100.0,110090.0,0.05067527]
[1751552869922,1.8618958,110100.0,110090.0,0.05067527]
[1751552870116,2.24950028,110100.0,110090.0,0.05067527]
[1751552870622,2.24950028,110100.0,110090.0,0.05087113]
[1751552871710,2.24950028,110100.0,110090.0,0.03667479]
[1751552871911,2.24950028,110100.0,110090.0,0.0508711]
[1751552874229,2.24950028,110100.0,110090.0,0.03526415]
[1751552875428,2.24950028,110100.0,110070.0,0.1041235]
[1751552875429,0.1816059,110080.0,110070.0,0.1041235]
[1751552875620,1.77133038,110080.0,110070.0,0.1041235]
[1751552875817,1.81273038,110080.0,110070.0,0.1041235]
[1751552876016,1.81273038,110080.0,110070.0,0.3557459]
[1751552876230,1.81273038,110080.0,110070.0,0.2857459]
[1751552876429,1.81273038,110080.0,110070.0,0.3557459]
[1751552876634,1.81273038,110080.0,110070.0,0.1751235]
[1751552876823,0.94061038,110080.0,110070.0,0.1751235]
[1751552877131,0.94061038,110080.0,110070.0,0.3567459]
[1751552877331,0.5530059,110080.0,110070.0,0.25263715]
[1751552877523,1.6695659,110080.0,110070.0,0.32263715]
[1751552878031,1.6695659,110080.0,110070.0,0.07101475]
[1751552878621,2.05717038,110080.0,110070.0,0.07101475]
[1751552879531,2.05717038,110080.0,110070.0,0.25263715]
[1751552879727,1.6695659,110080.0,110070.0,0.33263715]
[1751552880324,0.5530059,110080.0,110070.0,0.33263715]
[1751552880531,0.5116059,110080.0,110070.0,0.96164163]
[1751552880732,1.0525259,110080.0,110070.0,0.57294809]
[1751552881230,0.2270696,110090.0,110080.0,0.1816059]
[1751552881424,0.3624686,110090.0,110080.0,1.02079821]
[1751552881623,0.3624686,110090.0,110080.0,0.99361038]
[1751552881829,0.3624686,110090.0,110080.0,0.63319373]
[1751552882528,0.75007308,110090.0,110080.0,0.63319373]
[1751552884425,0.74999508,110090.0,110080.0,0.63319373]
[1751552885830,0.3623906,110090.0,110080.0,0.63319373]
[1751552886025,0.3623906,110090.0,110080.0,0.63319517]
[1751552886228,0.99467444,110090.0,110080.0,0.06798927]
[1751552886432,0.1816059,110080.0,110070.0,0.02900621]
[1751552886730,1.79091038,110080.0,110070.0,0.49062861]
[1751552886934,1.0933059,110080.0,110070.0,0.53022861]
[1751552887235,1.4733059,110080.0,110070.0,0.38153405]
[1751552887434,0.1816059,110080.0,110070.0,0.64153405]
[1751552887731,0.1816059,110080.0,110070.0,1.03213853]
[1751552888231,0.1816059,110080.0,110070.0,1.00494926]
[1751552889035,0.1816059,110080.0,110070.0,1.00488133]
[1751552889228,0.01473031,110090.0,110080.0,0.1816059]
[1751552889428,0.01473031,110090.0,110080.0,1.03124372]
[1751552889628,0.39031165,110100.0,110090.0,0.1815894]
[1751552889836,0.39031165,110100.0,110090.0,0.59211816]
[1751552890028,0.40512663,110100.0,110090.0,0.59211816]
[1751552890830,0.40712663,110100.0,110090.0,0.59211816]
[1751552891328,0.40712663,110100.0,110090.0,0.61931399]
[1751552891729,0.40712663,110100.0,110090.0,0.61932621]
[1751552891930,0.40713874,110100.0,110090.0,0.61932621]
[1751552892436,0.40713874,110100.0,110090.0,0.65543496]
[1751552893039,0.40813874,110100.0,110090.0,0.65543496]
[1751552893534,1.15574322,110100.0,110090.0,0.65543496]
[1751552893735,0.44963874,110100.0,110090.0,0.65543496]
[1751552893937,0.79574322,110100.0,110090.0,0.65543496]
[1751552894136,0.40813874,110100.0,110090.0,0.65543496]
[1751552894336,2.04050322,110100.0,110090.0,0.04133681]
[1751552894545,2.16500322,110100.0,110090.0,0.04133681]
[1751552894839,2.16500322,110100.0,110090.0,0.00339812]
[1751552895037,2.16500322,110100.0,110090.0,2e-08]
[1751552895233,2.16500322,110100.0,110080.0,0.03610875]
[1751552895234,0.1815894,110090.0,110080.0,0.03610875]
[1751552895440,1.65103836,110090.0,110080.0,0.00133335]
[1751552895843,1.26343388,110090.0,110080.0,0.00133335]
[1751552897028,1.02039388,110090.0,110080.0,0.00133335]
[1751552897238,0.1816059,110080.0,110070.0,0.07259726]
[1751552897541,1.02751609,110080.0,110070.0,0.07259726]
[1751552897841,1.02751609,110080.0,110070.0,0.01843413]
[1751552898635,1.02751609,110080.0,110070.0,0.02143413]
[1751552904138,1.02743809,110080.0,110070.0,0.02143413]
[1751552904347,1.41504257,110080.0,110070.0,0.00481694]
[1751552905354,1.41504257,110080.0,110070.0,0.00381694]
[1751552905658,1.41504257,110080.0,110070.0,0.00181694]
[1751552906356,1.02743809,110080.0,110070.0,0.00181694]
[1751552906756,1.02743809,110080.0,110070.0,0.01601596]
[1751552908654,1.41504257,110080.0,110070.0,0.01601596]
[1751552910451,0.1816554,110050.0,110040.0,0.00475238]
[1751552910661,2.02969354,110050.0,110040.0,0.18642428]
[1751552910851,2.15389354,110050.0,110040.0,0.18642428]
[1751552911051,1.44628906,110050.0,110040.0,0.51632428]
[1751552911250,0.19676906,110050.0,110040.0,0.90392876]
[1751552911551,0.19676906,110050.0,110040.0,0.59592428]
[1751552911952,0.87925988,110050.0,110040.0,0.38292428]
[1751552912259,0.91975988,110050.0,110040.0,0.60292428]
[1751552912461,0.2221554,110050.0,110040.0,0.60292428]
[1751552912955,0.1816554,110050.0,110040.0,0.60292428]
[1751552913158,1.13547103,110060.0,110050.0,0.1816554]
[1751552913457,0.56207103,110060.0,110050.0,0.0828]
[1751552913659,0.1816554,110050.0,110040.0,0.06738936]
[1751552913857,0.99015988,110050.0,110040.0,0.30175238]
[1751552914163,0.1816719,110040.0,110030.0,0.0018176]
[1751552914460,2.5344675,110040.0,110030.0,0.0018176]
[1751552914762,2.22709536,110040.0,110030.0,0.1980556]
[1751552914964,2.22509536,110040.0,110030.0,0.1980556]
[1751552915456,0.74730872,110040.0,110030.0,0.1980556]
[1751552915660,0.76236121,110040.0,110030.0,0.5307556]
[1751552915861,1.90512121,110040.0,110030.0,0.5307556]
[1751552916358,1.90512121,110040.0,110030.0,0.5107556]
[1751552916561,1.90532121,110040.0,110030.0,0.5107556]
[1751552916962,1.51771673,110040.0,110030.0,0.5107556]
[1751552917162,1.90532121,110040.0,110030.0,0.5107556]
[1751552917363,1.23819579,110040.0,110030.0,0.692444]
[1751552917560,1.24019579,110040.0,110030.0,0.735344]
[1751552917761,1.62780027,110040.0,110030.0,0.735344]
[1751552918156,1.67090027,110040.0,110030.0,0.735344]
[1751552918365,1.67050027,110040.0,110030.0,0.5107556]
[1751552918665,1.67050027,110040.0,110030.0,0.692444]
[1751552918666,1.71038027,110040.0,110030.0,0.692444]
[1751552919066,1.28297579,110040.0,110030.0,0.692444]
[1751552919266,1.67058027,110040.0,110030.0,0.692444]
[1751552919755,1.28297579,110040.0,110030.0,0.692444]
[1751552919960,1.67058027,110040.0,110030.0,0.692444]
[1751552920157,1.6794571,110040.0,110030.0,0.692444]
[1751552920362,0.7865771,110040.0,110030.0,0.692444]
[1751552920557,1.29169262,110040.0,110030.0,0.692444]
[1751552920960,0.7865771,110040.0,110030.0,0.732944]
[1751552921156,1.6784971,110040.0,110030.0,0.732944]
[1751552921363,0.7434771,110040.0,110030.0,0.732944]
[1751552921570,0.26699579,110040.0,110030.0,0.732944]
[1751552921967,1.15855579,110040.0,110030.0,0.732944]
[1751552922569,1.15855579,110040.0,110030.0,0.74714509]
[1751552923768,0.26699579,110040.0,110030.0,0.74714509]
[1751552923964,1.15855579,110040.0,110030.0,0.74714509]
[1751552924159,0.26699579,110040.0,110030.0,0.80147634]
[1751552924364,1.15771579,110040.0,110030.0,0.80147634]
[1751552924564,0.26699579,110040.0,110030.0,0.80147684]
[1751552925069,0.19872439,110040.0,110030.0,1.18908132]
[1751552925662,0.19872439,110040.0,110030.0,1.18908085]
[1751552926066,0.19872439,110040.0,110030.0,0.80147637]
[1751552927270,0.19972439,110040.0,110030.0,0.74714512]
[1751552927670,0.94683578,110040.0,110030.0,0.53495672]
[1751552927970,1.02353578,110040.0,110030.0,0.25495672]
[1751552928272,1.45034026,110040.0,110030.0,0.21225672]
[1751552928472,1.06273578,110040.0,110030.0,0.21225672]
[1751552928669,1.13406601,110040.0,110030.0,0.21225672]
[1751552928868,1.12406601,110040.0,110030.0,0.39394512]
[1751552929064,1.12406601,110040.0,110030.0,0.21225672]
[1751552929373,1.12406601,110040.0,110030.0,0.39394512]
[1751552930270,1.12406601,110040.0,110030.0,0.21225672]
[1751552930572,1.12406601,110040.0,110030.0,0.39394722]
[1751552931170,0.79406601,110040.0,110030.0,0.70386822]
[1751552931566,0.79406601,110040.0,110030.0,0.45386822]
[1751552931766,1.17406601,110040.0,110030.0,0.45386822]
[1751552931969,1.17406601,110040.0,110030.0,0.21217982]
[1751552932266,1.17406601,110040.0,110030.0,0.39386822]
[1751552932663,1.12406601,110040.0,110030.0,0.39386822]
[1751552933178,1.12406601,110040.0,110030.0,0.21217982]
[1751552934278,1.12406601,110040.0,110030.0,0.39386822]
[1751552934478,1.12406601,110040.0,110030.0,0.21217982]
[1751552935778,0.73646153,110040.0,110030.0,0.21217982]
[1751552935972,1.12406601,110040.0,110030.0,0.21217982]
[1751552937276,1.51167049,110040.0,110030.0,0.21217982]
[1751552937871,1.12406601,110040.0,110030.0,0.21217982]
[1751552938172,1.51167049,110040.0,110030.0,0.21217982]
[1751552939482,1.87194153,110040.0,110030.0,0.21217982]
[1751552939668,2.31379947,110040.0,110030.0,0.21217982]
[1751552939869,1.17824047,110040.0,110030.0,0.39386832]
[1751552940069,0.79398701,110040.0,110030.0,0.52386832]
[1751552940275,2.02878701,110040.0,110030.0,0.25157982]
[1751552940474,2.03878701,110040.0,110030.0,0.25157982]
[1751552940774,2.30178701,110040.0,110030.0,0.25257982]
[1751552941079,2.30178701,110040.0,110030.0,0.21317982]
[1751552941280,2.25178701,110040.0,110030.0,0.21317982]
[1751552941470,2.63939149,110040.0,110030.0,0.21317982]
[1751552941668,2.69364495,110040.0,110030.0,0.21317982]
[1751552942276,2.69364495,110040.0,110030.0,0.15718422]
[1751552942777,2.69364495,110040.0,109990.0,0.20382005]
[1751552942778,0.181738,110000.0,109990.0,0.20382005]
[1751552942983,1.77454248,110000.0,109990.0,0.14516555]
[1751552943279,1.81424248,110000.0,109990.0,0.10336555]
[1751552943682,1.85464248,110000.0,109990.0,0.10336555]
[1751552943978,1.53564248,110000.0,109990.0,0.54112005]
[1751552944168,1.53564248,110000.0,109990.0,0.06936555]
[1751552944374,1.53564248,110000.0,109990.0,0.06275473]
[1751552944375,1.87564248,110000.0,109990.0,0.06275473]
[1751552944574,1.91564248,110000.0,109990.0,0.06275473]
[1751552944879,1.188038,110000.0,109990.0,0.34275473]
[1751552945181,1.107638,110000.0,109990.0,0.52450923]
[1751552945576,1.12909904,110000.0,109990.0,0.52450923]
[1751552945775,1.45909904,110000.0,109990.0,0.32899273]
[1751552945977,1.86670352,110000.0,109990.0,0.24899273]
[1751552946177,1.88173509,110000.0,109990.0,0.24899273]
[1751552946580,1.54073596,110000.0,109990.0,0.24899273]
[1751552946779,1.47313148,110000.0,109990.0,0.24899273]
[1751552947082,1.86073596,110000.0,109990.0,0.24899273]
[1751552947282,1.85073596,110000.0,109990.0,0.24899273]
[1751552947488,1.50113148,110000.0,109990.0,0.24899273]
[1751552947677,1.50113148,110000.0,109990.0,0.72074723]
[1751552947678,0.25893061,110000.0,109990.0,0.72074723]
[1751552947877,1.33124957,110000.0,109990.0,0.72074723]
[1751552948075,1.33124957,110000.0,109990.0,0.75854723]
[1751552948076,0.45398629,110000.0,109990.0,0.75854723]
[1751552948477,0.44488957,110000.0,109990.0,0.75854723]
[1751552949179,0.45406615,110000.0,109990.0,0.75854723]
[1751552949384,0.44488957,110000.0,109990.0,0.75854723]
[1751552949978,0.46631068,110000.0,109990.0,0.75854723]
[1751552951687,0.86297014,110000.0,109990.0,0.75854723]
[1751552952181,0.58537405,110000.0,109990.0,0.75854723]
[1751552952389,0.19776957,110000.0,109990.0,0.75854723]
[1751552954583,0.19776957,110000.0,109990.0,1.14615171]
[1751552954781,0.01503157,110000.0,109990.0,1.34218232]
[1751552954984,0.2271683,110010.0,110000.0,0.181738]
[1751552955182,0.2271683,110010.0,110000.0,0.62584461]
[1751552955385,0.24859176,110010.0,110000.0,0.62584461]
[1751552956092,0.25771619,110010.0,110000.0,0.62584461]
[1751552956483,0.25871619,110010.0,110000.0,0.62984461]
[1751552956688,0.64632067,110010.0,110000.0,0.62984461]
[1751552956883,0.97632067,110010.0,110000.0,0.32184461]
[1751552957085,1.01752067,110010.0,110000.0,0.10150661]
[1751552957289,1.01752067,110010.0,110000.0,0.28324461]
[1751552957586,1.05852067,110010.0,110000.0,0.28324461]
[1751552957787,1.05852067,110010.0,110000.0,0.0873]
[1751552957983,1.05852067,110010.0,110000.0,0.0475]
[1751552958190,1.09702067,110010.0,110000.0,0.0475]
[1751552958694,1.09702067,110010.0,110000.0,0.229238]
[1751552958895,0.74852067,110010.0,110000.0,0.56344512]
[1751552959393,1.07852067,110010.0,110000.0,0.30344512]
[1751552959791,0.69091619,110010.0,110000.0,0.24344512]
[1751552959990,1.03752067,110010.0,110000.0,0.30344512]
[1751552960191,1.03752067,110010.0,110000.0,0.43968312]
[1751552960797,1.03752067,110010.0,110000.0,0.43960452]
[1751552961286,0.99752067,110010.0,110000.0,0.21644512]
[1751552961485,1.03522067,110010.0,110000.0,0.21644512]
[1751552963593,1.03522067,110010.0,110000.0,0.21644582]
[1751552964091,1.42282515,110010.0,110000.0,0.11857595]
[1751552964292,1.43750213,110010.0,110000.0,0.11857595]
[1751552964692,1.49181044,110010.0,110000.0,0.11857595]
[1751552965294,1.49381044,110010.0,110000.0,0.11857595]
[1751552965996,1.10620596,110010.0,110000.0,0.11857595]
[1751552966496,1.10920596,110010.0,110000.0,0.11957595]
[1751552968097,1.49681044,110010.0,110000.0,0.11957595]
[1751552968397,1.49673184,110010.0,110000.0,0.11957595]
[1751552969789,1.49673184,110010.0,110000.0,0.07201755]
[1751552969790,1.99373184,110010.0,110000.0,0.07201755]
[1751552969998,1.99373184,110010.0,110000.0,5e-08]
[1751552970600,0.181738,110000.0,109990.0,3e-08]
[1751552970793,2.85668052,110000.0,109950.0,0.05635266]
[1751552971101,0.95701316,109960.0,109950.0,0.05164028]
[1751552971298,2.4119526,109960.0,109950.0,0.05164028]
[1751552971502,2.5272526,109960.0,109950.0,0.05164028]
[1751552971794,2.13964812,109960.0,109950.0,0.05164028]
[1751552972100,2.13992812,109960.0,109950.0,0.09224028]
[1751552972594,2.14809166,109960.0,109950.0,0.09224028]
[1751552972800,2.14764252,109960.0,109950.0,0.09224028]
[1751552973003,2.14764252,109960.0,109950.0,0.28847828]
[1751552973295,2.14864252,109960.0,109950.0,0.238838]
[1751552973696,2.22168271,109960.0,109950.0,0.238838]
[1751552973899,2.22168271,109960.0,109950.0,0.239838]
[1751552974699,2.14448271,109960.0,109950.0,0.239838]
[1751552975201,1.83448271,109960.0,109950.0,0.239838]
[1751552975401,2.14448271,109960.0,109950.0,0.239838]
[1751552975597,2.14448271,109960.0,109950.0,0.519838]
[1751552975896,2.16623132,109960.0,109950.0,0.239838]
[1751552976096,2.19623132,109960.0,109950.0,0.239838]
[1751552976292,2.21142867,109960.0,109950.0,0.519838]
[1751552976499,2.21142867,109960.0,109950.0,0.239838]
[1751552976699,2.19098867,109960.0,109950.0,0.239838]
[1751552977091,2.22918867,109960.0,109950.0,0.239838]
[1751552977497,1.99918867,109960.0,109950.0,0.539838]
[1751552978002,1.87918867,109960.0,109950.0,0.539838]
[1751552978204,1.62158419,109960.0,109950.0,0.539838]
[1751552978405,1.58338419,109960.0,109950.0,0.539838]
[1751552978598,1.97098867,109960.0,109950.0,0.539838]
[1751552979303,2.16098867,109960.0,109950.0,0.239838]
[1751552979700,2.54859315,109960.0,109950.0,0.239838]
[1751552979896,2.54859315,109960.0,109950.0,0.199238]
[1751552980102,2.58829315,109960.0,109950.0,0.199238]
[1751552981599,3.26718915,109960.0,109950.0,0.199238]
[1751552981805,2.77018915,109960.0,109950.0,0.199238]
[1751552982105,2.92068915,109960.0,109950.0,0.17255689]
[1751552982404,0.1818538,109930.0,109920.0,0.0419]
[1751552982702,0.19664153,109920.0,109910.0,0.32505236]
[1751552982898,0.58324601,109920.0,109910.0,0.65455236]
[1751552983100,0.01477123,109920.0,109910.0,0.65455236]
[1751552983306,1.0664169,109930.0,109920.0,0.2273176]
[1751552983518,1.0664169,109930.0,109920.0,0.6065176]
[1751552983697,1.0666569,109930.0,109920.0,0.6065176]
[1751552984004,0.19660551,109940.0,109930.0,0.1818537]
[1751552984200,0.24660551,109940.0,109930.0,0.5805537]
[1751552984400,0.24660551,109940.0,109930.0,0.7624817]
[1751552984609,0.06476831,109940.0,109930.0,0.7624817]
[1751552984804,0.1818207,109950.0,109940.0,0.3181907]
[1751552985109,0.2018207,109950.0,109940.0,0.7139491]
[1751552985300,1.0865807,109950.0,109940.0,0.7139491]
[1751552985500,0.2018207,109950.0,109940.0,0.7139491]
[1751552985700,1.0863007,109950.0,109940.0,0.6684907]
[1751552986102,0.04192201,109950.0,109940.0,1.0722967]
[1751552986408,0.22674271,109950.0,109940.0,1.5052087]
[1751552986705,0.22674271,109950.0,109940.0,0.86760422]
[1751552986905,0.22674271,109950.0,109940.0,0.68569222]
[1751552987498,0.22374271,109950.0,109940.0,0.68469222]
[1751552987698,0.04292201,109950.0,109940.0,0.64123432]
[1751552987896,0.07304019,109960.0,109950.0,0.1818207]
[1751552988099,0.2726944,109970.0,109960.0,0.1818041]
[1751552988308,1.02029888,109970.0,109960.0,0.5220041]
[1751552988502,0.70500372,109970.0,109960.0,0.5220041]
[1751552989014,0.34500372,109970.0,109960.0,0.5220041]
[1751552989306,0.34500372,109970.0,109960.0,0.5230041]
[1751552989307,0.35930752,109970.0,109960.0,0.5230041]
[1751552989709,0.35000372,109970.0,109960.0,0.5230041]
[1751552989911,0.30455352,109970.0,109960.0,0.5230041]
[1751552990310,0.30455352,109970.0,109960.0,0.7192421]
[1751552990909,0.30755352,109970.0,109960.0,0.7192421]
[1751552991602,0.30455352,109970.0,109960.0,0.7192421]
[1751552991911,0.07830932,109970.0,109960.0,0.7192421]
[1751552992104,0.2954365,110000.0,109960.0,2.11452696]
[1751552992313,0.431738,110000.0,109990.0,0.1817545]
[1751552992506,0.25,110000.0,109990.0,0.4917545]
[1751552992708,0.183738,110000.0,109990.0,0.5721545]
[1751552993409,0.89134248,110000.0,109990.0,0.5521545]
[1751552993613,0.92954248,110000.0,109990.0,0.5521545]
[1751552993911,0.93954248,110000.0,109990.0,0.2631545]
[1751552994110,0.181771,109980.0,109970.0,0.2272308]
[1751552994309,1.22926857,109980.0,109970.0,0.5752308]
[1751552994507,1.22926857,109980.0,109970.0,0.27944046]
[1751552994712,1.26746857,109980.0,109970.0,0.23399366]
[1751552995211,1.26746857,109980.0,109970.0,0.05220966]
[1751552995402,1.0744107,109980.0,109970.0,0.21044766]
[1751552995603,3.4716907,109980.0,109970.0,0.21144766]
[1751552995810,2.3357707,109980.0,109970.0,0.21144766]
[1751552996012,3.4716907,109980.0,109970.0,0.21144766]
[1751552997110,3.45688857,109980.0,109970.0,0.21144766]
[1751552997316,3.45888857,109980.0,109970.0,0.21144766]
[1751552997816,2.32296857,109980.0,109970.0,0.21136906]
[1751552998008,0.33800409,109980.0,109970.0,0.46315656]
[1751552998216,1.14674409,109980.0,109970.0,0.50505656]
[1751552998415,1.48674409,109980.0,109970.0,0.55465656]
[1751552998615,1.48674409,109980.0,109970.0,0.54465656]
[1751552999515,1.48674409,109980.0,109970.0,0.47465656]
[1751552999516,1.14674409,109980.0,109970.0,0.47465656]
[1751552999711,1.14674409,109980.0,109970.0,0.76465656]
[1751553000017,1.50674409,109980.0,109970.0,0.55465656]
[1751553000615,1.14674409,109980.0,109970.0,0.75465656]
[1751553000915,0.29687576,109980.0,109970.0,0.75465656]
[1751553001214,1.18307576,109980.0,109970.0,0.75465656]
[1751553001412,0.11510476,109980.0,109970.0,0.75465656]
[1751553001615,0.11510476,109980.0,109970.0,1.14226104]
[1751553001812,1.7799838,110000.0,109990.0,0.1817544]
[1751553002017,1.50854442,110000.0,109990.0,0.4817544]
[1751553002208,0.25114442,110000.0,109990.0,0.5634544]
[1751553002908,0.63114442,110000.0,109990.0,0.3]
[1751553003116,0.181771,109980.0,109970.0,0.57060247]
[1751553003314,0.94937548,109980.0,109970.0,0.84555587]
[1751553003520,1.03137548,109980.0,109970.0,0.84555587]
[1751553003912,0.613771,109980.0,109970.0,0.47466427]
[1751553004116,0.613771,109980.0,109970.0,0.74466427]
[1751553004320,1.00137548,109980.0,109970.0,0.74466427]
[1751553004516,1.02332701,109980.0,109970.0,0.78466427]
[1751553004717,1.02332701,109980.0,109970.0,0.47466427]
[1751553005018,1.02332701,109980.0,109970.0,0.75466427]
[1751553005217,0.28572253,109980.0,109970.0,0.75466427]
[1751553005416,0.28672253,109980.0,109970.0,0.75466427]
[1751553005717,0.02395153,109980.0,109970.0,1.14426875]
[1751553005916,0.002,109980.0,109970.0,1.36802475]
[1751553006111,1.2453445,110000.0,109990.0,0.1817545]
[1751553006315,1.59730059,110000.0,109990.0,0.2617545]
[1751553006519,1.26722199,110000.0,109990.0,0.2624545]
[1751553006723,1.26690199,110000.0,109990.0,0.3324545]
[1751553006917,1.26690199,110000.0,109990.0,0.3424545]
[1751553007114,1.26690199,110000.0,109970.0,0.25448687]
[1751553007115,0.1363236,109990.0,109970.0,0.25448687]
[1751553007420,1.70229548,109980.0,109970.0,0.4200256]
[1751553007617,2.10179548,109980.0,109970.0,0.3800256]
[1751553007826,2.15179548,109980.0,109970.0,0.3800256]
[1751553008016,1.78179548,109980.0,109970.0,0.3800256]
[1751553008216,2.11179548,109980.0,109970.0,0.3780256]
[1751553008617,2.18411512,109980.0,109970.0,0.196238]
[1751553009720,1.85411512,109980.0,109970.0,0.3780255]
[1751553009918,2.21411512,109980.0,109970.0,0.39223565]
[1751553010114,2.21411512,109980.0,109970.0,0.21044815]
[1751553010517,1.85411512,109980.0,109970.0,0.39223565]
[1751553010716,2.22411512,109980.0,109970.0,0.39223565]
[1751553011725,0.96851512,109980.0,109970.0,0.39223565]
[1751553011942,2.25586831,109980.0,109970.0,0.39223565]
[1751553012230,1.48826383,109980.0,109970.0,0.47223565]
[1751553012425,0.69654383,109980.0,109970.0,0.51403565]
[1751553012617,0.67754383,109980.0,109970.0,0.43403565]
[1751553012816,1.81002383,109980.0,109970.0,0.52403565]
[1751553013533,1.81002383,109980.0,109970.0,0.50403565]
[1751553014326,2.19762831,109980.0,109970.0,0.50403565]
[1751553014629,1.81002383,109980.0,109970.0,0.50403565]
[1751553014830,2.19734831,109980.0,109970.0,0.50403565]
[1751553015023,1.80974383,109980.0,109970.0,0.50403565]
[1751553015218,2.19734831,109980.0,109970.0,0.50403565]
[1751553015729,2.19734831,109980.0,109970.0,0.50403568]
[1751553016227,2.24734831,109980.0,109970.0,0.43403568]
[1751553016428,1.85974383,109980.0,109970.0,0.43403568]
[1751553016930,1.85974383,109980.0,109970.0,0.25224818]
[1751553017230,2.24734831,109980.0,109970.0,0.21144818]
[1751553017425,2.28824831,109980.0,109970.0,0.21144818]
[1751553017631,2.28824831,109980.0,109970.0,0.71323578]
[1751553017831,1.86064383,109980.0,109970.0,0.47323578]
[1751553018032,1.88064383,109980.0,109970.0,0.67323578]
[1751553018329,1.88064383,109980.0,109970.0,0.51165688]
[1751553018531,2.26824831,109980.0,109970.0,0.51165688]
[1751553019125,2.26824831,109980.0,109970.0,0.43165688]
[1751553019126,1.13604831,109980.0,109970.0,0.43165688]
[1751553019321,2.26768831,109980.0,109970.0,0.51165688]